{"text_format":"1","workbook":"xlsx","n_sheets":1,"sheets":["Import"],"not_rendered":{"charts":0,"images":1,"macros":1,"external_links":0,"defined_names":2,"comments":0,"pivot_tables":0},"unopened":[],"bounds":{"document_bytes":16777216,"sheet_cells":100000,"rows_first":2000,"rows_last":500,"rows_between":2000,"halvings":0,"cell_chars":16384,"cell_head_chars":4096},"cells_cut":0,"cells_raw":0,"read":"whole","date_system":"1900"}

{"sheet":"Import","index":0,"n_rows":43,"n_cols":25,"rows_kept":43,"cut":false,"hidden":false,"merged":[[4,1,4,2],[15,1,18,2],[6,5,6,6],[7,5,7,6],[4,4,4,6],[9,5,9,6],[10,5,10,6],[13,5,13,6],[12,4,12,6],[16,5,16,6],[17,4,17,5],[20,4,21,4],[20,5,21,5],[8,5,8,6],[20,0,21,0],[20,1,21,1],[20,2,21,2],[20,3,21,3],[25,6,25,7],[20,6,21,7],[22,6,22,7],[42,6,42,7],[34,6,34,7],[30,6,30,7],[31,6,31,7],[32,6,32,7],[33,6,33,7],[35,6,35,7],[36,6,36,7],[37,6,37,7],[38,6,38,7],[1,5,1,9],[39,6,39,7],[40,6,40,7],[41,6,41,7],[26,6,26,7],[27,6,27,7],[28,6,28,7],[29,6,29,7],[23,6,23,7],[24,6,24,7],[20,8,21,8],[3,3,3,5],[5,5,5,6],[20,9,21,9],[14,5,14,6],[15,5,15,6]]}
[null,null,"Catholic Relief Services",null,null,"Instructions (email / attachment) for HQ involved purchases:"]
[null,null,"Requisition Form",null,null,"Requisitioners need to \"Forward\" this requisition to their CRS authorizing official for their approval. CRS authorizing officials should review and \"Forward\" this notification to \"Purchasing\" stating their approval. Purchasing cannot move forward until authorization is given."]
[]
[null,"Requisition # for Reference:"," Reference # here","Ref. Format: CP or Site code - Date (yymmdd) - Series:",null,null,"ZW-060504-01",null,null,{"$f":"TODAY()","v":"2012-09-14"}]
[null,"Requsitioner Information and Approval:",null,null,"Shipping Information (Ship To):",null,null,null,null,{"$f":"NOW()","v":41166.621621874998}]
[null,"Requisitioner Name:","   *** Fill in.  Mandatory. ***",null,"  Company Name:"," *** Fill in.  Mandatory. ***"]
[null,"Requisitioner Title:","   *** Fill in.  Mandatory. ***",null,"Street Address:"," *** Fill in.  Mandatory. ***",null,null,"Suggested Supplier Name:"]
[null,"Authorizing Official:","   *** Fill in.  Mandatory. ***",null,null,null,null,null,"Street Address:"]
[null,"Title of Authorizing Official:","   *** Fill in.  Mandatory. ***",null,"City or Town:"," *** Fill in.  Mandatory. ***"]
[null,"Country Program ","   *** Fill in.  Mandatory. ***",null,"Postal Code:",null,null,null,"City or Town:"]
[null,null,null,null,"Country:"," *** Fill in.  Mandatory. ***",null,null,"Postal Code:"]
[null,"Telephone Number:","   *** Fill in.  Mandatory. ***",null,null,null,null,null,"Country:"]
[null,"FAX Number:","   *** Fill in.  Mandatory. ***",null,"Delivery Instructions (On Arrival):"]
[null,"Email Address:","   *** Fill in.  Mandatory. ***",null,"Deliver Attention:"," *** Fill in.  Mandatory. ***",null,null,"Contact Name:"]
[null,null,null,null,"Tel. Number:"," *** Fill in.  Mandatory. ***",null,null,"Telephone Number:"]
[null,"Note:  When needed, additional row(s) may be added to the requisition below.  Place the cursor in a cell on the row below which the copied row is to be inserted, and press CTRL-I.  Each key action will copy and insert one (1) row.",null,null,"FAX Number:"," *** Fill in.  Mandatory. ***",null,null,"FAX Number:"]
[null,null,null,null,"E-mail Address:"," *** Fill in.  Mandatory. ***",null,null,"E-mail Address:"]
[null,null,null,null,"Ship Via:"]
[null,null,null,null,null,null,null,null,null,null,null,null,null,null,null,null,null,null,null,null,null,null,"YES",null,"Ship"]
[null,null,null,null,null,null,null,null,null,null,null,null,null,null,null,null,null,null,null,null,null,null,"NO",null,"Air"]
["Line","Item/ Part/ Model Number","Brief Description","Order Quantity","Unit of Measure","Date Desired","Expense Account Number",null,"Extended Description \n(Note: users can cut & paste specs here) After you paste select \"Match Destination Formatting\" from small clipboard","Local Purchase Approval requested? Yes or No by line ",null,null,null,null,null,null,null,null,null,null,null,null,"TBD",null,"Truck"]
[null,null,null,null,null,null,null,null,null,null,null,null,null,null,null,null,null,null,null,null,null,null,null,null,"Train"]
[{"$f":"IF(CONCATENATE(B23,C23,G23)<>\"\",A22+1,\"\")","v":""}]
[{"$f":"IF(CONCATENATE(B24,C24,G24)<>\"\",A23+1,\"\")","v":""}]
[{"$f":"IF(CONCATENATE(B25,C25,G25)<>\"\",#REF!+1,\"\")","v":""}]
[""]
[""]
[""]
[""]
[""]
[""]
[""]
[""]
[""]
[{"$f":"IF(CONCATENATE(B35,C35,G35)<>\"\",#REF!+1,\"\")","v":""}]
[""]
[""]
[""]
[""]
[""]
[""]
[""]
[""]